Cogmind - Beta 15 @@@ ROGUE MODE // 2025.06.22 @ 12:16:16 Player: LameThyst Result: Destroyed by G-34 Mercenary with Small Laser Performance ------------- Evolutions (0) 0 Regions Visited (1) 200 Robots Destroyed (18) 90 Value Destroyed (288) 288 Prototype IDs (2) 40 Alien Tech Used (0) 0 Bonus (0) 0 TOTAL SCORE: 618 Bonus ------- None Cogmind --------- Core Integrity 0/250 Matter 253/300 Energy 250/250 System Corruption 0% Temperature Cool (12) Movement Walking (120) Location -10/Materials Parts ------- > --- POWER (1) -------- Ion Engine > --- PROPULSION (2) --- Aluminum Leg Aluminum Leg > --- UTILITY (2) ------ Heat Sink Medium Storage Unit > --- WEAPON (2) ------- Assault Rifle Light Assault Rifle > --- INVENTORY (10) --- Light Ion Engine Light Treads Light Treads Aluminum Leg Aluminum Leg Medium Storage Unit ECM Suite Small Laser Grenade Launcher Grenade Launcher Peak State ------------ > --- POWER ------------ Light Ion Engine > --- PROPULSION ------- Aluminum Leg Aluminum Leg > --- UTILITY ---------- Heat Sink Medium Storage Unit > --- WEAPON ----------- Assault Rifle Light Assault Rifle > --- INVENTORY -------- Light Ion Engine Light Treads Light Treads Aluminum Leg Aluminum Leg Medium Storage Unit ECM Suite Small Laser Grenade Launcher Grenade Launcher [Rating: 8] Favorites ----------- Power Light Ion Engine Engine Light Ion Engine Propulsion Aluminum Leg Leg Aluminum Leg Wheel Wheel Utility Small Storage Unit Device Heat Sink Storage Small Storage Unit Weapon Light Assault Rifle Ballistic Gun Light Assault Rifle Launcher Grenade Launcher Build | -11 -10 ------- Run | Yrd Mat Slots Evolved . | . . Power . | . . Propulsion . | . . Utility . | . . Weapon . | . . Parts Attached 22 | 6 16 Power 6 | 1 5 Engine 6 | 1 5 Core . | . . Reactor . | . . Propulsion 6 | 2 4 Treads . | . . Leg 3 | 2 1 Wheel 3 | . 3 Hover . | . . Flight . | . . Utility 4 | 1 3 Device 2 | . 2 Storage 2 | 1 1 Processor . | . . Hackware . | . . Protection . | . . Artifact . | . . Weapon 6 | 2 4 Energy Gun . | . . Energy Cannon . | . . Ballistic Gun 4 | 2 2 Ballistic Cannon . | . . Launcher 2 | . 2 Special Weapon . | . . Impact Weapon . | . . Slashing Weapon . | . . Piercing Weapon . | . . Special Melee Weapon . | . . Unidentified Prototypes . | . . Parts Lost 1 | . 1 Power . | . . Propulsion 1 | . 1 Utility . | . . Weapon . | . . Highest Loss Streak 1 | . 1 To Critical Strikes . | . . Average Backups 7 | 3 8 Power 1 | 1 1 Propulsion 4 | 1 4 Utility . | . . Weapon 1 | . 1 Tool/Special . | . . Unused Backups 10 | . 10 Power 1 | . 1 Propulsion 5 | . 5 Utility 3 | . 3 Weapon 1 | . 1 Tool/Special . | . . Average Slot Usage (%) 95 | . 95 Engine 14 | . 14 Leg 15 | . 15 Wheel 12 | . 12 Device 10 | . 10 Storage 14 | . 14 Ballistic Gun 26 | . 26 Peak Build Rating 8 | 6 8 Average Rating 6 | 4 6 On Entrance 3 | . 6 Naked Turns . | . . Heaviest Build 19 | 11 19 Greatest Support 26 | 20 26 Greatest Overweight (x) . | . . Average Overweight (x) . | . . Largest Inventory Capacity 10 | 8 10 Average Capacity 8 | 6 8 Most Carried 10 | 8 10 Average Carried 7 | 3 8 Final Capacity 10 | 8 10 Final Carried 10 | 8 10 Class Distribution -------------------- 93% | Mutant 6% | Scavenger-Mutant Dominant Class ---------------- Mutant | -10/Materials Resources | -11 -10 ----------- Run | Yrd Mat Matter Collected 658 | 266 392 Remotely . | . . Salvage Created 535 | 85 450 Parts 28 | 2 26 Haulers Intercepted 1 | . 1 Recyclers Shooed . | . . Parts Field Recycled . | . . Retrieved Matter . | . . Parts Self-Destructed . | . . Prevented . | . . Kills | -11 -10 ------- Run | Yrd Mat Combat Hostiles Destroyed 14 | . 14 Guns 13 | . 13 AOE 1 | . 1 Classes Destroyed 5 | 1 4 Worker 1 | . 1 Hauler 1 | . 1 Recycler 2 | 1 1 Swarmer 9 | . 9 Grunt 5 | . 5 Best Kill Streak 3 | 1 3 Combat Bots Only 3 | . 3 Max Kills in Single Turn 3 | 1 3 Gunslinging 1 | . 1 Exploded 1 | . 1 Melee . | . . Uniques/NPCs Destroyed . | . . Combat | -11 -10 -------- Run | Yrd Mat Hostile Shots Fired 95 | . 95 Missed 21 | . 21 Hits 74 | . 74 Projectile 74 | . 74 Critical Strikes 1 | . 1 Damage Taken 813 | . 813 Core 261 | . 261 Absorbed by Shields . | . . Regen/Repaired (Parts) 41 | . 41 Core Remaining (%) 100 | 100 . Volleys Fired 58 | 6 52 Largest 2 | 1 2 Hottest 60 | 20 60 Shots Fired 110 | 6 104 Gun 108 | 6 102 Cannon . | . . Launcher 2 | . 2 Special . | . . Kinetic 108 | 6 102 Thermal . | . . Explosive 2 | . 2 Electromagnetic . | . . Robot Hit Streak 10 | 2 10 Robot Miss Streak 2 | 1 2 Penetration Max . | . . Secondary Targets 4 | . 4 Max Gunslinging Chain 1 | . 1 Shots Hit Robots 71 | 4 67 Core Hits 28 | 2 26 Critical Kills . | . . Critical Parts Destroyed . | . . Critical Strikes . | . . Melee Attacks . | . . Impact . | . . Slashing . | . . Piercing . | . . Sneak Attacks . | . . Combat Hostiles . | . . Follow-up Attacks . | . . Damage Inflicted 865 | 31 834 Guns 742 | 31 711 Cannons . | . . Explosions 123 | . 123 Melee . | . . Ramming . | . . Kinetic 742 | 31 711 Thermal . | . . Explosive 123 | . 123 Electromagnetic . | . . Impact . | . . Slashing . | . . Piercing . | . . Highest Corruption . | . . Average Corruption . | . . Corruption Purged . | . . Corruption Blocked . | . . Overload Shots . | . . Overflow Damage 16 | . 16 Projectiles . | . . Explosions 16 | . 16 Melee . | . . Knockbacks . | . . Impact . | . . Kinetic . | . . Secondary . | . . Self-Inflicted Damage 42 | . 42 Shots 1 | . 1 Rammed . | . . Targets Rammed . | . . Kicked . | . . Crushed . | . . Highest Temperature 18 | . 18 Average Temperature 8 | . 8 Received Heat Transfer 276 | . 276 Siege Activations . | . . Martial Activations . | . . Shielding Activations . | . . Robots Disrupted . | . . Combat Hostiles . | . . Robots Corrupted . | . . Combat Hostiles . | . . Parts Fried . | . . Impact Corruptions . | . . Robots Melted . | . . Combat Hostiles . | . . Parts Melted . | . . Heat Transferred . | . . Parts Sabotaged . | . . Parts Stolen . | . . Parts Stripped . | . . Power Chain Reactions . | . . Alert | -11 -10 ------- Run | Yrd Mat Maximum Alert Level 1 | . 1 Low Security (%) 88 | 100 86 Level 1 11 | . 13 Level 2 . | . . Level 3 . | . . Level 4 . | . . Level 5 . | . . High Security . | . . Max Security . | . . Peak Influence 224 | 5 224 Initial . | . . Average 107 | . 124 Influence Increases 435 | 5 430 Destroy 0b10 Robot/C 280 | . 280 Destroy 0b10 Robot/NC 20 | 5 15 Destroy Leader 52 | . 52 Successful Hack 29 | . 29 Destroy Structure 9 | . 9 Lose Combat Pursuer 45 | . 45 Influence Decreases 251 | 5 246 Time Decay 241 | 5 236 Lost Part 10 | . 10 Squads Dispatched 2 | . 2 Investigation 1 | . 1 Extermination . | . . Reinforcement 1 | . 1 Assault . | . . Garrison . | . . Intercept . | . . Searches Triggered . | . . Construction Impeded . | . . Haulers Reinforced . | . . Active Scanning Responses . | . . Cargo Convoy Interrupts . | . . Stealth | -11 -10 --------- Run | Yrd Mat Distress Signals 2 | . 2 Communications Jammed . | . . Distress Signals . | . . Times Spotted 21 | . 21 Peak Tracking Total 5 | . 5 Tactical Retreats 2 | . 2 Traps | -11 -10 ------- Run | Yrd Mat Traps Triggered . | . . Indirectly . | . . Trap Hack Attempts . | . . Triggered . | . . Disarmed . | . . Reprogrammed . | . . Reused . | . . Traps Extracted . | . . Installed . | . . Triggered . | . . Machines | -11 -10 ---------- Run | Yrd Mat Machines Disabled . | . . Max in Single Turn . | . . Machines Repaired . | . . Machines Dismantled . | . . Machines Sabotaged . | . . Overloaded Fab Kills . | . . Hacking | -11 -10 --------- Run | Yrd Mat Machines Accessed 7 | . 7 Terminals 5 | . 5 Fabricators . | . . Repair Stations 1 | . 1 Recycling Units 1 | . 1 Scanalyzers . | . . Garrison Access . | . . Total Hacks 15 | . 15 Successful 10 | . 10 Failed 5 | . 5 Catastrophic . | . . Database Lockouts . | . . Manual . | . . Terminals 8 | . 8 Fabricators . | . . Repair Stations 4 | . 4 Recycling Units 3 | . 3 Scanalyzers . | . . Garrison Access . | . . Terminal Hacks 7 | . 7 Prototype ID Bank 1 | . 1 Locate Traps 1 | . 1 Transport Status 1 | . 1 Recall Investigation 1 | . 1 Hauler Manifests 1 | . 1 Zone Layout 2 | . 2 Fabricator Hacks . | . . Repair Station Hacks 2 | . 2 Scan Component 1 | . 1 Repair 1 | . 1 Recycling Unit Hacks 1 | . 1 Retrieve Components 1 | . 1 Scanalyzer . | . . Garrison Access Hacks . | . . Unauthorized Hacks . | . . Terminals . | . . Fabricators . | . . Repair Stations . | . . Recycling Units . | . . Scanalyzers . | . . Garrison Access . | . . Data Cores Recovered . | . . Used . | . . Hacking Detections 5 | . 5 Full Trace Events 1 | . 1 Feedback Events . | . . Feedback Blocked . | . . Robot Schematics Acquired . | . . Robots Built . | . . Authchips . | . . Time . | . . Total Robot Build Rating . | . . Part Schematics Acquired . | . . Parts Built . | . . Authchips . | . . Time . | . . Total Part Build Rating . | . . Parts Repaired 1 | . 1 Time 26 | . 26 Parts Recycled . | . . Recycled Matter . | . . Retrieved Matter . | . . Retrieved Components 5 | . 5 Parts Scanalyzed . | . . Part Schematics Acquired . | . . Parts Damaged . | . . Bothacking | -11 -10 ------------ Run | Yrd Mat Used RIF Installer . | . . Robots Hacked . | . . Non-combat . | . . Combat . | . . Robot Hacks Applied . | . . Relay Couplers Released . | . . Fabnet Peak Effective % . | . . Robots Rewired . | . . Allies Hacked . | . . Hacks Repelled . | . . Allies | -11 -10 -------- Run | Yrd Mat Total Allies . | . . Largest Group . | . . Highest-Rated Group . | . . Highest-Rated Ally . | . . Total Orders . | . . Ally Attacks . | . . Total Damage . | . . Kills . | . . Allies Corrupted . | . . Allies Melted . | . . Intel | -11 -10 ------- Run | Yrd Mat Active Infowar (turns) . | . . Robot Analysis Total . | . . Derelict Logs Recovered . | . . Drone Launches . | . . Drone Recoveries . | . . Exploration | -11 -10 ------------- Run | Yrd Mat Turns Passed 620 | 87 533 Spaces Moved 341 | 55 286 Core 8 | 8 . Treads . | . . Legs 240 | 47 193 Wheels 93 | . 93 Hover . | . . Flight . | . . Fastest Speed 50 | 50 80 Average Speed 109 | 109 109 Slowest Speed 120 | 120 120 Overloaded Moves . | . . Propulsion Burnouts . | . . Robots Hopped . | . . Potential Cave-ins . | . . Cave-ins Triggered . | . . Exploration Rate (%) 17 | 4 31 Regions Visited 1 Branch Regions . Pre-discovered Areas . | . . Known Exits Taken . | . . Unknown Exits Taken 1 | 1 . Scrap Searched . | . . Spaces Dug . | . . Terrain Destroyed 9 | . 9 Melee . | . . Projectile . | . . AOE 9 | . 9 Terrain Rammed . | . . Walls Destroyed . | . . Machines Disabled . | . . Actions | -11 -10 --------- Run | Yrd Mat Total 487 | 74 413 Wait 29 | . 29 Move 340 | 54 286 Hop . | . . Pick Up 18 | 8 10 Fast Attach 8 | 6 2 Attach 1 | . 1 Detach . | . . Swap 19 | . 19 Drop 14 | . 14 Fire 58 | 6 52 Melee . | . . Ram . | . . Kick . | . . Crush . | . . Escape Stasis . | . . Rewire . | . . Trap . | . . Miscellaneous . | . . Route ------- -11/Scrapyard -10/Materials (discovered 1 exit: [*Mat]) History --------- Turn | Location | Event 6 | -11/Scrapyard | Discovered new exit (range 13) 88 | -11/Scrapyard | Entered Materials 186 | -10/Materials | Repaired Assault Rifle 215 | -10/Materials | Core integrity fell below 50% 310 | -10/Materials | Build established: Mutant 446 | -10/Materials | Core integrity fell below 20% 608 | -10/Materials | Discovered new exit (range 10) 621 | -10/Materials | Destroyed by G-34 Mercenary with Small Laser Last Messages --------------- Retrieving 5 components... Heat Sink Lgt. Assault Rifle Flight Unit Lgt. Ion Engine Flight Unit 00571_ R-06 Scavenger inserts Wheel into recycling unit. 00574_ R-06 Scavenger inserts Flight Unit into recycling unit. 00578_ O-16 Technician: "IFF HANDSHAKE FAILED. SECURING TERMINAL." 00590_ Connecting with Terminal... >>Layout(Zone) Retrieving Zone 9O layout... Downloaded map data. 00606_ ALERT: Hostiles spotted, dispatching reinforcements to Terminal M003. 00608_ EXIT=FOUND 00611_ K-01 Serf cleans the TF Node. Map ----- +----------------------------------------------------+ | | | | | | | | | | | | | | | | | | | | | ?????????????????????????????????????????????????? | | ???????????????????????? ????????????????????????? | | ???????????????????????? ????????????????????????? | | ???????????????????????" ????????????????????????? | | ###????????????????????" ????????????????????????? | | #????????????????????" ????????#???????????????? | | #???????????????????? ??????? #???????????????? | | #??########?????????? ??????< #???????????????? | | #??# #?????######+##### #?????# """ ""? | | #### T #????????# ### ####### """ ""? | | # # #?????#### """ ""? | | # # #????? # ! ? | | + + #???###### ? | | # # #???# ## ################+### ? | | ### ############ ## gg##?????????# ## ? | | ?# ##### # ## @#??????????# ## ? | | ?# # ## ############ ## ? | | ?# T T #### ## ## ## ? | | ?# # # # ### ## ## """ ## ## ? | | ###+### % ## ##### ## ## """ ## ## ? | | #= !## #???? ## ##] """ ## """ ## ? | | # = ## #???? # # ## """ ## ? | | # = ## #???? # # "" ## """ ## ? | | "" # ## #????#??# "k + T" ## ## ? | | "Y # ## #???????# # "" ## ## ? | | "" # ## #???????# # ########### ? | | # ##+#####???## ###########?????????# ? | | ####### # #????# # !!!==[#???????????# ? | | # # T #????# # !!! ""#???????????# ? | | """ # # #????# / !!*!Y"#???????????# ? | | """ + + #????# # ""#???????????# ? | | """ # # #????# # #???????????# ? | | # # #????# #########???????????# ? | | ! # #####+####### #??????????????????## ? | | ####### # +% #??????????????????# ? | | ??????# # """ ### #??????????????????# ? | | ??????# # * R" ### #########??????????# ? | | ??????# + """ """ ### ###!!! ##??????????# ? | | ??????# # """ #?# % ##! !#??????????# ? | | ??????# # """ ### ## #??????????????? | +----------------------------------------------------+ Best States ------------- Heat Dissipation 35 Energy Generation 10 Energy Capacity 250 Matter Stores 300 Matter Capacity 300 Sight Range 16 Terrain Scan Density 10 Evasion (%) 55 Item Schematics ----------------- None Robot Schematics ------------------ None Fabricated ------------ Nothing Repaired ---------- Assault Rifle | 59% | -10/Materials Alien Tech Used ----------------- None Achievements -------------- None Challenges ------------ None Game ------ Seed GrenadeHeartSystem Manual? 0 Play Time 00:13:31 Cumulative 12.8 hours Start 2025.06.22 @ 12:06:07 End 2025.06.22 @ 12:16:16 Sessions 1 Manual Loads 0 Difficulty Rogue Special Mode None Game No. 17 Rogue 17 Adventurer 0 Explorer 0 Win Type - Total 0 Types 0/0/0/0/0/0/0/0/0/0 Lore% 5 Gallery% 17 Achievement% 15 Wizard Run 0 Options --------- Layout 1 ASCII 0 Keyboard 0 Movement Mouse Keybinds 0 Fullscreen 2 Font 48/Smallcaps Map View 50x35 Zoom Use 0% Tactical HUD 1 Map Filters NONE Filters NONE Steam 0 RUN: 05267959-1720-4e70-afbd-528eb49548a8